bitfinex/quotes_ETHUSD_20250131
["timestamp","ask_amount","ask_price","bid_price","bid_amount"]
[1738305059962,0.005,3252.4,3252.3,3.68509922]
[1738305060156,0.005,3252.4,3252.3,4.25009922]
[1738305060695,0.005,3252.4,3252.3,4.45609922]
[1738305060867,0.005,3252.4,3252.3,3.63974]
[1738305061263,0.005,3252.4,3252.3,3.67047945]
[1738305061470,0.005,3252.4,3252.3,3.95560169]
[1738305061673,0.005,3252.4,3252.3,3.95560133]
[1738305062059,0.12264453,3252.4,3252.3,3.95560133]
[1738305062259,0.005,3252.4,3252.3,3.95560133]
[1738305062455,0.12264453,3252.4,3252.3,3.40560133]
[1738305062800,0.12264453,3252.4,3252.3,0.30012224]
[1738305063893,0.12264453,3252.4,3251.9,3.0751]
[1738305063894,3.19730453,3252.4,3252.1,0.28512224]
[1738305064204,0.12264453,3252.4,3252.1,0.28512224]
[1738305064558,3.07482,3252.3,3252.1,0.28512224]
[1738305064764,3.07484,3252.2,3252.1,0.28512224]
[1738305065094,3.19248453,3252.2,3252.1,0.28512224]
[1738305065495,3.19248453,3252.2,3251.7,3.04574686]
[1738305066719,3.19248453,3252.2,3251.7,0.04574686]
[1738305066922,3.19248453,3252.2,3251.7,3.04574686]
[1738305067215,0.11764453,3252.2,3251.7,0.03074686]
[1738305067421,3.07494,3252.1,3251.6,3.03074742]
[1738305067719,0.11786332,3252.0,3251.7,0.015]
[1738305068779,0.11786332,3252.0,3251.6,0.31512283]
[1738305068986,3.07519,3251.9,3251.5,0.86024929]
[1738305069206,3.07519,3251.9,3251.6,0.015]
[1738305069741,0.11786332,3251.8,3251.6,0.015]
[1738305069902,3.07506,3252.0,3251.6,0.015]
[1738305070098,0.11786332,3251.9,3251.6,0.015]
[1738305070630,0.11786332,3251.9,3251.6,0.04575032]
[1738305071023,3.07494,3252.1,3251.6,0.04575032]
[1738305071204,0.11776507,3251.8,3251.6,0.04575032]
[1738305071405,3.07504,3252.0,3251.6,0.04575032]
[1738305072037,0.11776507,3251.9,3251.6,0.04575032]
[1738305072400,0.11776507,3251.9,3251.6,0.015]
[1738305075411,0.11776507,3251.9,3251.8,0.015]
[1738305075831,3.07485,3252.2,3251.8,0.015]
[1738305076030,0.1177115,3251.9,3251.7,0.015]
[1738305076240,3.07498,3252.1,3251.7,0.015]
[1738305076421,0.1177115,3251.8,3251.7,0.015]
[1738305076620,3.07498,3252.1,3251.7,0.015]
[1738305076804,0.1177115,3251.8,3251.6,0.015]
[1738305077008,3.07498,3252.1,3251.6,0.015]
[1738305077245,0.1177115,3251.7,3251.6,0.0457489]
[1738305077445,3.07498,3252.1,3251.6,0.0457489]
[1738305077608,0.1177115,3251.7,3251.6,0.015]
[1738305077943,0.1177115,3251.7,3251.6,0.04574907]
[1738305078237,3.07509,3252.0,3251.6,0.04574903]
[1738305078441,0.1177115,3251.7,3251.6,0.04574903]
[1738305078746,6.15019,3252.0,3251.6,0.015]
[1738305078945,0.1177115,3251.9,3251.6,0.015]
[1738305080414,3.1928715,3251.9,3251.6,0.015]
[1738305081151,3.07527,3251.8,3251.6,0.015]
[1738305081350,0.11819839,3251.7,3251.5,0.015]
[1738305081662,3.07527,3251.8,3251.5,0.015]
[1738305081834,0.11819839,3251.6,3251.5,0.015]
[1738305082032,3.07527,3251.8,3251.5,0.015]
[1738305082235,0.11819839,3251.6,3251.5,0.015]
[1738305082716,3.07527,3251.8,3251.5,0.015]
[1738305082916,0.11819839,3251.7,3251.5,0.015]
[1738305083112,3.07522,3251.8,3251.5,0.015]
[1738305084448,3.07509,3252.0,3251.5,0.015]
[1738305084651,3.07514,3251.9,3251.7,0.015]
[1738305084855,0.11815375,3251.9,3251.7,0.015]
[1738305085054,0.11815375,3251.9,3251.4,0.28509009]
[1738305085244,3.19334375,3251.9,3251.4,0.28509009]
[1738305085446,0.03590171,3252.4,3251.5,0.015]
[1738305085754,0.03590171,3252.4,3251.4,0.28509009]
[1738305085755,3.8603,3251.5,3251.4,0.28509009]
[1738305086054,3.19356443,3251.5,3251.4,0.28509009]
[1738305086254,3.19356443,3251.5,3251.1,0.015]
[1738305086433,0.11806443,3251.5,3251.1,0.04575511]
[1738305086632,3.07574,3251.3,3251.1,0.04575511]
[1738305086832,3.07574,3251.3,3251.1,0.015]
[1738305087033,0.11806443,3251.2,3251.1,0.015]
[1738305087218,0.11806443,3251.2,3251.1,0.04575516]
[1738305087419,3.07555,3251.5,3251.1,0.04575516]
[1738305088157,0.7848,3251.8,3251.2,0.55]
[1738305088461,3.07538,3251.7,3251.4,0.015]
[1738305088753,0.1176178,3251.6,3251.4,0.015]
[1738305088930,3.07542,3251.6,3251.2,0.03075238]
[1738305089124,3.07562,3251.4,3251.0,0.0307537]
[1738305089458,3.07562,3251.4,3251.1,0.565]
[1738305089659,0.1176178,3251.3,3251.1,0.565]
[1738305089861,3.07562,3251.4,3251.1,0.565]
[1738305090252,3.07562,3251.4,3251.1,0.015]
[1738305090555,0.1176178,3251.3,3251.1,0.015]
[1738305090763,3.0757,3251.3,3251.1,0.015]
[1738305091123,3.1933978,3251.2,3251.0,0.015]
[1738305092461,3.1933978,3251.2,3251.1,0.30074134]
[1738305093648,3.07578,3251.2,3251.1,0.30074134]
[1738305093827,3.07578,3251.2,3251.1,0.015]
[1738305094023,3.0756,3251.4,3251.1,0.015]
[1738305094640,0.1176178,3251.3,3251.1,0.015]
[1738305094853,3.07578,3251.2,3251.1,0.015]
[1738305095762,3.1933978,3251.2,3251.1,0.015]
[1738305096729,0.1176178,3251.2,3251.1,0.015]
[1738305097230,3.07578,3251.2,3251.1,0.015]
[1738305097560,3.1933978,3251.2,3251.1,0.015]
[1738305098060,3.1933978,3251.2,3251.1,0.3007881]
[1738305099565,3.07578,3251.2,3251.1,0.3007881]
[1738305101762,3.07578,3251.2,3251.1,0.015]
[1738305102264,3.0756,3251.4,3251.1,0.015]
[1738305102668,0.1176178,3251.3,3251.1,0.015]
[1738305103230,3.0756,3251.4,3251.1,0.015]
[1738305103466,3.0756,3251.4,3251.1,0.3007881]
[1738305103767,3.0757,3251.3,3251.1,0.3007881]
[1738305104469,3.0757,3251.3,3251.1,0.015]
[1738305104668,3.07578,3251.2,3251.1,0.015]
[1738305105231,3.0756,3251.4,3251.1,0.015]
[1738305105555,3.07571,3251.3,3251.1,0.015]
[1738305105769,6.15094,3251.6,3251.1,0.015]
[1738305105968,3.07557,3251.5,3251.1,0.015]
[1738305106280,3.07557,3251.5,3251.2,0.015]
[1738305106281,0.1176133,3251.5,3251.2,0.015]
[1738305106433,0.1176133,3251.5,3251.4,6.64059]
[1738305106631,3.07484,3252.2,3251.7,0.0075]
[1738305106886,3.07484,3252.2,3251.8,0.0075]
[1738305107090,0.10499451,3252.1,3251.8,0.0075]
[1738305107373,3.07484,3252.2,3251.8,0.0075]
[1738305107677,0.10509308,3252.1,3251.8,0.0075]
[1738305108469,3.07484,3252.2,3251.8,0.0075]
[1738305109185,3.07965,3252.4,3251.9,0.777]
[1738305109485,3.07965,3252.4,3252.1,0.0075]
[1738305110247,3.07965,3252.4,3252.0,0.015]
[1738305110462,0.005,3252.4,3252.1,0.03074649]
[1738305110677,0.005,3252.4,3252.3,3.08974]
[1738305111290,0.005,3252.4,3252.3,3.12048217]
[1738305111471,0.1105589,3252.4,3252.3,3.12048217]
[1738305111641,0.005,3252.4,3252.3,7.7211736]
[1738305111843,0.1105589,3252.4,3252.3,8.77002279]
[1738305113375,0.005,3252.4,3252.3,8.77002279]
[1738305115462,0.005,3252.4,3252.3,5.69528279]
[1738305115657,0.11126184,3252.4,3252.3,0.85029143]
[1738305115862,0.005,3252.4,3252.3,0.85029143]
[1738305116053,0.11127079,3252.4,3252.3,0.8810339]
[1738305116247,0.005,3252.4,3252.3,0.59574247]
[1738305116473,0.11127079,3252.4,3252.3,0.565]
[1738305116684,0.005,3252.4,3252.3,0.59574246]
[1738305116888,0.11127079,3252.4,3252.3,0.59574246]
[1738305117085,0.005,3252.4,3252.3,1.26279971]
[1738305118404,0.005,3252.4,3252.3,4.33753971]
[1738305118547,0.1112305,3252.4,3252.3,4.33753971]
[1738305118893,0.005,3252.4,3252.3,4.33753971]
[1738305119052,0.005,3252.4,3252.3,5.17053971]
[1738305121387,0.005,3252.4,3252.3,5.45485617]
[1738305121871,0.005,3252.4,3252.3,8.45485617]
[1738305122072,0.005,3252.4,3252.3,8.42411371]
[1738305122506,0.005,3252.4,3252.3,8.73251371]
[1738305122805,0.005,3252.4,3252.3,43.73251371]
[1738305122987,0.005,3252.4,3252.3,43.83251371]
[1738305123459,0.005,3252.4,3252.3,44.17201329]
[1738305123666,0.1636916,3252.6,3252.5,5.39795]
[1738305123997,0.1636916,3252.6,3252.5,9.79208009]
[1738305124195,0.1636916,3252.6,3252.5,9.76135]
[1738305124396,0.1636916,3252.6,3252.5,44.76135]
[1738305124564,0.1636916,3252.6,3252.5,47.30902657]
[1738305124766,0.1636916,3252.6,3252.5,47.59334303]
[1738305124967,0.1636916,3252.6,3252.5,47.79534303]
[1738305125163,0.1636916,3252.6,3252.5,47.59334303]
[1738305125366,0.1636916,3252.6,3252.5,47.79534303]
[1738305125759,0.1636916,3252.6,3252.5,48.14909019]
[1738305125965,0.1636916,3252.6,3252.5,47.94709019]
[1738305126205,0.1636916,3252.6,3252.5,48.14909019]
[1738305126497,0.1636916,3252.6,3252.5,47.79634303]
[1738305126689,1.6e-06,3252.6,3252.5,47.99634303]
[1738305126885,1.6e-06,3252.6,3252.5,47.59334303]
[1738305127424,1.6e-06,3252.6,3252.5,47.79634303]
[1738305127564,1.6e-06,3252.6,3252.5,47.59334303]
[1738305127983,1.6e-06,3252.6,3252.5,47.79634303]
[1738305129320,1.6e-06,3252.6,3252.5,12.79634303]
[1738305129668,1.6e-06,3252.6,3252.5,47.79634303]
[1738305130074,1.6e-06,3252.6,3252.5,47.59334303]
[1738305130597,1.6e-06,3252.6,3252.5,47.79634303]
[1738305132389,1.6e-06,3252.6,3252.5,47.99634303]
[1738305134390,1.6e-06,3252.6,3252.5,48.36399091]
[1738305135109,1.6e-06,3252.6,3252.5,48.16399091]
[1738305135318,1.6e-06,3252.6,3252.5,43.22994303]
[1738305135490,1.6e-06,3252.6,3252.5,8.12454303]
[1738305135686,1.6e-06,3252.6,3252.5,5.57686646]
[1738305135892,1.6e-06,3252.6,3252.5,41.1576039]
[1738305136093,1.6e-06,3252.6,3252.5,35.50231646]
[1738305136397,1.6e-06,3252.6,3252.5,39.12686646]
[1738305137098,1.6e-06,3252.6,3252.5,41.92386646]
[1738305138311,1.6e-06,3252.6,3252.5,44.86057968]
[1738305138479,1.6e-06,3252.6,3252.5,44.57626322]
[1738305139021,1.6e-06,3252.6,3252.5,41.50171322]
[1738305139320,1.6e-06,3252.6,3252.5,38.565]
[1738305140487,1.6e-06,3252.6,3252.5,41.63955]
[1738305141629,1.6e-06,3252.6,3252.5,41.92430356]
[1738305141927,1.6e-06,3252.6,3252.5,38.84975356]
[1738305143033,1.6e-06,3252.6,3252.5,38.29975356]
[1738305143340,3.0744616,3252.6,3252.5,0.28475356]
[1738305143516,4.53243493,3252.6,3252.5,0.28475356]
[1738305143718,4.63517201,3252.6,3252.5,0.28475356]
[1738305143887,3.93969868,3252.6,3252.5,0.28475356]
[1738305144792,3.93969868,3252.6,3252.3,0.015]
[1738305144988,3.83696,3252.6,3252.3,0.015]
[1738305145503,0.7625,3252.6,3252.3,0.015]
[1738305146512,0.7625,3252.6,3252.3,0.2999246]
[1738305147823,0.7625,3252.6,3252.3,0.015]
[1738305149627,3.83699,3252.6,3252.3,0.015]
[1738305150826,0.10272522,3252.5,3252.3,0.015]
[1738305151029,3.83699,3252.6,3252.3,0.015]
[1738305152006,0.7625,3252.6,3252.3,0.015]
[1738305152629,3.83697,3252.6,3252.3,0.015]
[1738305152792,0.10272522,3252.5,3252.3,0.015]
[1738305153125,3.17735522,3252.5,3251.9,3.07512]
[1738305153332,3.17735522,3252.5,3251.9,3.10586617]
[1738305153493,3.17735522,3252.5,3251.9,3.07512]
[1738305154027,3.17735522,3252.5,3252.0,0.015]
[1738305154597,3.07466,3252.4,3252.0,0.015]
[1738305155125,0.10272522,3252.3,3252.0,0.04574656]
[1738305155530,3.07456,3252.5,3252.0,0.04574656]
[1738305155892,0.10272522,3252.4,3252.0,0.04574656]
[1738305156092,0.10272522,3252.4,3252.0,0.015]
[1738305156793,3.07456,3252.5,3252.0,0.015]
[1738305158307,3.07456,3252.5,3252.0,0.04574658]
[1738305159430,0.7679,3252.3,3251.8,0.015]
[1738305159626,0.10236618,3252.2,3251.8,0.59574704]
[1738305159844,0.7679,3252.3,3251.8,6.67093704]
[1738305160028,0.10236618,3252.2,3251.8,6.64019]
[1738305160230,0.7679,3252.3,3251.8,7.611738]
[1738305160442,0.10236618,3252.2,3252.0,0.015]
[1738305160599,0.7679,3252.3,3252.0,0.015]
[1738305160799,0.10236618,3252.2,3252.0,0.015]
[1738305161004,0.7679,3252.3,3252.0,0.015]
[1738305161318,3.17721618,3252.2,3251.6,3.07533]
[1738305161529,3.17721618,3252.2,3251.5,3.07542]
[1738305161709,3.07499,3252.1,3251.5,3.07542]
[1738305162040,3.07508,3252.0,3251.5,0.3084]
[1738305162337,3.17709161,3252.0,3251.7,0.015]
[1738305164052,0.8,3251.9,3251.7,0.015]
[1738305164257,0.10197569,3251.8,3251.7,0.29995383]
[1738305164462,0.8,3251.9,3251.7,0.29995383]
[1738305164611,0.1018904,3251.8,3251.7,0.28495383]
[1738305165008,3.1771004,3251.8,3251.7,0.28495383]
[1738305165361,3.1771004,3251.8,3251.5,0.28495383]
[1738305165563,3.07533,3251.7,3251.5,0.28495383]
[1738305166006,0.1018904,3251.6,3251.5,0.28495383]
[1738305166506,0.1018904,3251.6,3251.4,0.015]
[1738305167339,3.1773204,3251.6,3251.3,0.015]
[1738305167537,0.8052,3251.5,3251.3,0.015]
[1738305167738,0.8052,3251.5,3251.3,0.300473]
[1738305167933,0.10161648,3251.4,3251.3,0.300473]
[1738305168756,3.07521,3251.8,3251.3,3.376163]
[1738305168951,0.10149974,3251.4,3251.3,3.376163]
[1738305169153,0.8008,3252.0,3251.5,0.015]
[1738305169479,0.7919,3252.6,3252.3,0.015]
[1738305169920,0.7919,3252.6,3252.3,3.08974]
[1738305170121,0.7919,3252.6,3252.3,0.015]
[1738305170858,3.86638,3252.6,3252.3,0.015]
[1738305171935,6.94093,3252.6,3252.3,0.015]
[1738305172261,3.0746,3252.5,3252.3,0.015]
[1738305172558,3.86638,3252.6,3252.3,0.015]
[1738305172735,3.86638,3252.6,3252.2,0.26747836]
[1738305173341,0.1015716,3252.5,3252.2,0.26747836]
[1738305173739,3.07465,3252.4,3252.2,0.26747836]
[1738305174163,0.09473598,3252.3,3252.2,0.26747836]
[1738305174534,0.09473598,3252.3,3251.9,3.0]
[1738305175067,0.09473598,3252.3,3252.0,0.015]
[1738305175242,3.86638,3252.6,3252.0,3.09002]
[1738305175428,6.94093,3252.6,3252.0,3.09002]
[1738305175737,3.16934049,3252.5,3252.0,0.015]
[1738305177256,0.09474049,3252.5,3252.0,0.015]
[1738305177462,3.07471,3252.4,3252.0,0.015]
[1738305177670,0.09473147,3252.3,3252.0,0.015]
[1738305179169,3.07456,3252.5,3252.0,0.015]
[1738305179369,0.09473147,3252.2,3252.0,0.015]
[1738305179570,3.07456,3252.5,3252.0,0.015]
[1738305179784,0.09473147,3252.1,3252.0,0.015]
[1738305179984,3.07456,3252.5,3252.0,0.015]
[1738305180163,0.09473147,3252.1,3252.0,3.09002]
[1738305180365,3.07456,3252.5,3252.0,3.09002]
[1738305180876,0.09473147,3252.4,3252.0,3.09002]
[1738305181761,0.09473147,3252.4,3252.3,3.84064]
[1738305182071,0.8138,3253.0,3252.4,0.565]
[1738305182277,3.07435,3252.8,3252.3,3.0]
[1738305182657,0.09483075,3252.7,3252.3,3.0]
[1738305182856,3.07435,3252.8,3252.3,3.0]
[1738305183178,0.09483075,3252.7,3252.1,0.565]
[1738305183390,3.83233,3252.6,3252.1,0.565]
[1738305183684,0.09486233,3252.5,3251.9,3.07509]
[1738305183850,0.09486233,3252.5,3251.7,3.87752]
[1738305183851,3.07472,3252.4,3251.7,3.07522]
[1738305184053,3.16974547,3252.3,3251.8,3.015]
[1738305184247,0.09492547,3252.3,3251.8,6.12095895]
[1738305185077,3.16967547,3252.3,3251.8,0.04574895]
[1738305185375,3.16967547,3252.3,3251.9,0.28561705]
[1738305186660,0.8253,3252.2,3251.9,0.28561705]
[1738305186859,0.09480366,3252.1,3252.0,0.28561705]
[1738305187982,0.09480366,3252.1,3252.0,4.68114705]
[1738305188280,0.09482171,3252.1,3252.0,0.28561705]
[1738305188448,0.8125,3252.1,3252.0,0.28561705]
[1738305188782,0.90731719,3252.1,3252.0,0.28561705]
[1738305188957,0.09481719,3252.1,3252.0,0.28561705]
[1738305189348,3.07466,3252.4,3252.0,0.28561705]
[1738305189548,0.09480817,3252.1,3252.0,0.28561705]
[1738305189859,3.93523817,3252.1,3252.0,0.28561705]
[1738305190059,3.07506,3252.0,3251.6,0.015]
[1738305190262,0.09484426,3251.9,3251.6,0.015]
[1738305190458,3.16998426,3251.9,3251.6,0.015]
[1738305190680,3.16998426,3251.9,3251.4,3.07557]
[1738305191187,3.16998426,3251.9,3251.5,0.28568476]
[1738305192157,3.87102569,3251.9,3251.6,0.28568476]
[1738305192580,3.07531,3251.7,3251.6,0.28568476]
[1738305192851,3.98422342,3251.7,3251.6,0.28568476]
[1738305194660,3.98422342,3251.7,3251.2,0.28568476]
[1738305196289,3.98422342,3251.7,3251.3,0.28568476]
[1738305197471,3.98422342,3251.7,3251.4,0.28568476]
[1738305198108,4.76026391,3251.7,3251.4,0.28568476]
[1738305198405,3.07546,3251.6,3251.4,0.28568476]
[1738305198791,0.09410422,3251.5,3251.4,0.28568476]
[1738305198995,0.09410422,3251.5,3251.1,0.015]
[1738305200017,0.09410422,3251.5,3251.1,3.09087]
[1738305200327,0.09408617,3251.4,3251.1,3.09087]
[1738305200503,4.66555049,3251.7,3251.1,3.09087]
[1738305200808,0.56064122,3251.6,3251.1,3.09087]
[1738305201641,0.09408617,3251.6,3251.1,3.09087]
[1738305201930,0.09408617,3251.6,3251.2,3.07577]
[1738305202224,0.09408617,3251.6,3251.2,3.36145392]
[1738305203270,3.88951,3251.7,3251.2,3.36145392]
[1738305203588,3.88951,3251.7,3251.3,0.28568392]
[1738305203795,4.585973,3251.7,3251.3,0.28568392]
[1738305203978,3.16951456,3251.6,3251.3,0.28568392]
[1738305204887,3.16951456,3251.6,3251.1,3.09086]
[1738305205084,3.07546,3251.6,3251.1,3.09086]
[1738305205301,0.0940681,3251.5,3251.1,3.09086]
[1738305205803,0.8142,3251.7,3251.1,6.16668]
[1738305206108,0.8142,3251.7,3251.3,0.015]
[1738305206315,0.8146,3252.1,3251.7,3.07529]
[1738305206514,0.0940591,3252.0,3251.7,3.07529]
[1738305207011,0.8146,3252.1,3251.7,3.07529]
[1738305208278,0.8146,3252.1,3251.5,3.85509]
[1738305208619,0.8146,3252.1,3251.6,3.07539]
[1738305209184,0.8146,3252.1,3251.5,3.85509]
[1738305209582,3.0743,3252.8,3252.1,3.07492]
[1738305209878,3.98327185,3252.7,3252.1,3.07492]
[1738305210107,0.90891185,3252.7,3252.2,0.015]
[1738305210308,0.8146,3252.7,3252.2,0.015]
[1738305210616,0.8146,3252.7,3252.2,3.08982]
[1738305213497,3.91988171,3252.7,3252.2,0.015]
[1738305213706,4.58839817,3252.7,3252.2,0.015]
[1738305214119,0.09441111,3252.6,3252.3,3.07474]
[1738305214490,0.09441111,3252.6,3252.2,0.015]
[1738305214798,0.09441111,3252.6,3252.3,3.07472]
[1738305216778,0.7633,3252.9,3252.3,3.07472]
[1738305216982,0.09453294,3252.5,3252.3,3.07472]
[1738305217185,3.07428,3252.8,3252.3,3.07472]
[1738305217383,0.09453294,3252.4,3252.3,3.08972]
[1738305217585,0.7633,3252.9,3252.3,3.08972]
[1738305217818,0.09453294,3252.4,3252.3,3.08972]
[1738305217983,3.83748,3252.9,3252.3,3.08972]
[1738305218184,0.09453294,3252.4,3252.3,3.08972]
[1738305218396,3.83748,3252.9,3252.3,3.08972]
[1738305218885,0.09453294,3252.8,3252.3,3.08972]
[1738305220618,3.16882294,3252.8,3252.3,0.015]
[1738305222225,3.07442,3252.7,3252.3,0.015]
[1738305222828,3.16905294,3252.6,3252.3,0.015]
[1738305223025,3.07471,3252.4,3252.0,0.7646]
[1738305223328,0.7989,3252.4,3251.7,3.07525]
[1738305223695,0.7989,3252.4,3251.8,3.565]
[1738305223899,0.09453294,3252.3,3252.0,0.015]
[1738305225131,0.09453294,3252.3,3251.9,0.015]
[1738305225330,3.50566818,3252.2,3251.9,0.015]
[1738305225529,0.09476757,3252.1,3251.9,0.015]
[1738305226434,3.86674,3251.9,3251.4,3.07555]
[1738305226930,0.09472246,3251.8,3251.4,3.07555]
[1738305227091,3.86674,3251.9,3251.4,3.07555]
[1738305227293,0.7916,3251.9,3251.4,3.07555]
[1738305228009,0.7916,3251.9,3251.5,0.45662979]
[1738305228938,0.09457806,3251.8,3251.5,0.45662979]
[1738305229138,0.7916,3251.9,3251.5,0.45662979]
[1738305229359,0.09457806,3251.8,3251.5,0.45662979]
[1738305229659,0.09457806,3251.8,3251.4,0.015]
[1738305229802,3.86678,3251.9,3251.4,0.015]
[1738305230441,0.09457806,3251.8,3251.4,0.015]
[1738305230803,0.09457806,3251.8,3251.4,35.015]
[1738305231020,0.09457806,3251.8,3251.4,0.015]
[1738305231707,3.84905,3252.2,3251.6,0.015]
[1738305232048,3.84905,3252.2,3251.8,0.015]
[1738305232203,3.07467,3252.4,3252.0,0.015]
[1738305232204,0.7742,3252.4,3252.0,0.015]
[1738305232403,0.09451489,3252.1,3252.0,3.09003]
[1738305232632,3.07448,3252.6,3252.0,3.09003]
[1738305232846,0.307448,3252.5,3252.0,3.09003]
[1738305233009,0.40181398,3252.5,3252.0,3.09003]
[1738305233338,0.09436598,3252.5,3252.2,3.07483]
[1738305233538,3.07431,3252.8,3252.2,3.84543]
[1738305233836,0.09445625,3252.7,3252.2,3.84543]
[1738305234235,0.09445625,3252.7,3252.3,3.0897]
[1738305234604,3.85128,3252.9,3252.3,3.0897]
[1738305234826,0.09453296,3252.6,3252.3,3.0897]
[1738305235028,3.85128,3252.9,3252.3,3.0897]
[1738305235533,3.85128,3252.9,3252.3,0.015]
[1738305235730,0.09453296,3252.8,3252.3,3.08974]
[1738305236654,3.07446,3252.6,3251.9,0.8304]
[1738305236860,3.86073,3252.4,3251.8,3.07516]
[1738305237224,3.86073,3252.4,3251.9,35.015]
[1738305237537,0.09469088,3252.3,3251.9,35.015]
[1738305237854,3.07474,3252.3,3251.9,35.015]
[1738305238356,0.09469088,3252.2,3252.0,0.4569328]
[1738305238746,3.07474,3252.3,3252.0,0.4569328]
[1738305238944,0.09469088,3252.2,3252.0,0.4569328]
[1738305239148,3.07474,3252.3,3252.0,0.4569328]
[1738305239328,0.09469088,3252.2,3252.0,0.4569328]
[1738305239529,3.07474,3252.3,3251.9,0.4569328]
[1738305240359,3.07494,3252.1,3251.9,0.4569328]
[1738305240740,0.09460065,3252.0,3251.9,0.4569328]
[1738305240948,0.09460065,3252.0,3251.7,0.4569328]
[1738305241255,3.07494,3252.1,3251.7,0.4569328]
[1738305241853,3.7990146,3252.3,3251.7,3.5322028]
[1738305242144,0.09453747,3252.2,3251.7,3.5322028]
[1738305242359,0.09453747,3252.2,3251.9,0.015]
[1738305242566,0.09453747,3252.2,3252.1,3.07493]
[1738305242863,0.7736,3252.8,3252.4,0.015]
[1738305243255,0.09446526,3252.7,3252.4,0.015]
[1738305243630,0.7736,3252.8,3252.4,0.015]
[1738305243871,4.23271,3252.8,3252.1,3.10561768]
[1738305244033,3.07455,3252.5,3251.7,3.90053]
[1738305244238,3.07483,3252.3,3251.7,3.90053]
[1738305244546,0.09459613,3252.2,3251.8,0.015]
[1738305244742,3.07485,3252.2,3251.8,0.015]
[1738305244957,0.86619613,3252.1,3251.8,0.015]
[1738305245159,0.86619613,3252.1,3251.7,0.015]
[1738305246571,0.86619613,3252.1,3251.7,3.09027]
[1738305246736,0.86619613,3252.1,3251.7,4.006839]
[1738305246937,0.86619613,3252.1,3251.8,0.4573522]
[1738305248163,0.86619613,3252.1,3251.9,0.4573522]
[1738305248668,0.7716,3252.1,3251.9,0.4573522]
[1738305249473,0.7716,3252.1,3251.8,0.4573522]
[1738305249775,3.82727,3252.3,3251.8,0.4573522]
[1738305250177,0.09461869,3252.2,3251.8,0.4573522]
[1738305250553,3.07484,3252.2,3251.8,0.4573522]
[1738305250774,3.82727,3252.3,3251.8,0.4573522]
[1738305251086,0.09461869,3252.1,3251.9,0.4573522]
[1738305251244,3.07484,3252.2,3251.9,0.4573522]
[1738305251639,0.09454198,3252.1,3251.9,0.4573522]
[1738305252375,3.07484,3252.2,3251.9,0.4573522]
[1738305252572,3.07503,3252.0,3251.9,0.4573522]
[1738305252873,3.07527,3251.8,3251.3,0.015]
[1738305253264,3.07527,3251.8,3251.3,3.015]
[1738305253843,0.7794,3251.9,3251.3,3.015]
[1738305255143,0.7794,3251.9,3251.4,3.07557]
[1738305255645,3.85452,3251.9,3251.4,3.07557]
[1738305255881,3.07529,3251.8,3251.3,3.015]
[1738305256480,3.07508,3252.0,3251.5,0.015]
[1738305257161,0.09446526,3251.9,3251.6,35.0]
[1738305257359,3.85427,3252.2,3251.6,35.0]
[1738305257566,6.92919,3252.2,3251.5,3.0904]
[1738305257768,3.075,3252.1,3251.5,3.0904]
[1738305257947,3.16934794,3252.1,3251.5,3.0904]
[1738305258391,3.075,3252.1,3251.5,3.0904]
[1738305258987,3.075,3252.1,3251.5,0.015]
[1738305259285,3.075,3252.1,3251.5,3.09049]
[1738305261131,3.075,3252.1,3251.5,3.8614364]
[1738305261293,3.85427,3252.2,3251.6,3.0754]
[1738305261586,3.07503,3252.0,3251.5,3.09049]
[1738305262454,0.09434794,3251.9,3251.5,3.09049]
[1738305262790,3.07529,3251.8,3251.2,3.7667]
[1738305262979,3.89061171,3251.7,3251.1,6.07581]
[1738305263178,3.98496416,3251.7,3251.2,0.565]
[1738305263380,3.98496416,3251.7,3251.2,0.0075]
[1738305263566,4.69097558,3251.7,3251.2,0.0075]
[1738305263768,3.07542,3251.6,3251.2,0.0075]
[1738305263966,0.09432537,3251.5,3251.2,0.0075]
[1738305264292,0.7844,3251.7,3251.2,3.08328]
[1738305264454,0.09428476,3251.4,3251.2,3.08328]
[1738305264659,0.7844,3251.7,3251.2,3.08328]
[1738305265196,0.09428476,3251.6,3251.2,3.08328]
[1738305267793,0.12518647,3251.6,3251.1,0.015]
[1738305267997,0.09428476,3251.6,3251.1,0.015]
[1738305268172,0.09428476,3251.6,3251.2,3.07577]
[1738305270299,0.09428476,3251.6,3251.3,0.565]
[1738305270597,0.8145,3251.9,3251.6,0.0075]
[1738305271103,0.09424414,3251.8,3251.6,0.0075]
[1738305272071,0.09424414,3251.8,3251.4,3.07551]
[1738305273315,0.49572073,3251.8,3251.2,3.07572]
[1738305273693,3.57096073,3251.8,3251.3,0.0075]
[1738305274094,3.60186244,3251.8,3251.3,0.0075]
[1738305274295,3.07532,3251.7,3251.2,0.015]
[1738305274707,0.09424414,3251.6,3251.2,0.0075]
[1738305274919,0.09424414,3251.6,3251.2,3.08328]
[1738305277286,0.09424414,3251.6,3251.1,0.015]
[1738305277486,0.7918,3251.5,3251.1,0.015]
[1738305277998,0.09400491,3251.4,3251.1,0.015]
[1738305278199,0.09400491,3251.4,3251.1,3.09087]
[1738305280119,0.12490662,3251.4,3251.1,3.09087]
[1738305280820,0.09400491,3251.4,3251.1,3.09087]
[1738305281017,0.09400491,3251.4,3251.1,3.07587]
[1738305281218,0.03090171,3251.3,3251.0,6.07596]
[1738305281529,0.09395074,3251.2,3251.0,6.07596]
[1738305281702,0.03090171,3251.4,3251.0,6.07596]
[1738305281908,0.09395074,3251.3,3251.0,6.07596]
[1738305282611,0.12485245,3251.3,3251.0,6.07596]
[1738305282808,0.09395074,3251.3,3251.1,3.07581]
[1738305283188,0.7918,3251.5,3251.1,3.07581]
[1738305283393,0.7918,3251.5,3251.2,3.07576]
[1738305285826,0.7918,3251.5,3251.0,9.15188]
[1738305286793,0.7918,3251.5,3251.1,3.07586]